fUSD/lending_fUSD_20260616
["ID","MTS","AMOUNT","RATE_DAILY","PERIOD"]
[425201294,1781569839000,-500.0,8.219e-05,2]
[425201296,1781569839000,-500.0,8.219e-05,2]
[425201298,1781569839000,-500.0,8.219e-05,2]
[425201297,1781569839000,-500.0,8.219e-05,2]
[425201299,1781569839000,-238.67191065,8.219e-05,2]
[425201290,1781569839000,-2116567.52884344,7.204e-05,2]
[425201365,1781569840000,-500.0,0.00010045,2]
[425201361,1781569840000,-500.0,0.00010045,2]
[425201363,1781569840000,-150.0,0.00010045,2]
[425201359,1781569840000,-150.0,0.00010045,2]
[425201353,1781569840000,-500.0,0.00010045,2]
[425201351,1781569840000,-517.6265061,0.00010045,2]
[425201370,1781569840000,-150.0,0.00010045,2]
[425201345,1781569840000,-500.0,0.00010045,2]
[425201349,1781569840000,-500.0,0.00010045,2]
[425201372,1781569840000,-500.0,0.00010045,2]
[425201376,1781569840000,-500.0,0.00010045,2]
[425201380,1781569840000,-500.0,0.00010045,2]
[425201378,1781569840000,-150.0,0.00010045,2]
[425201355,1781569840000,-500.0,0.00010045,2]
[425201374,1781569840000,-150.0,0.00010045,2]
[425201382,1781569840000,-250.0,0.00010045,2]
[425201383,1781569840000,-500.0,0.00010045,2]
[425201385,1781569840000,-500.0,0.00010045,2]
[425201390,1781569840000,-500.0,0.00010045,2]
[425201387,1781569840000,-500.0,0.00010045,2]
[425201392,1781569840000,-500.0,0.00010045,2]
[425201394,1781569840000,-500.0,0.00010045,2]
[425201367,1781569840000,-150.0,0.00010045,2]
[425201347,1781569840000,-500.0,0.00010045,2]
[425201339,1781569840000,-500.0,0.00010045,2]
[425201341,1781569840000,-500.0,0.00010045,2]
[425201300,1781569840000,-500.0,8.219e-05,2]
[425201302,1781569840000,-500.0,8.219e-05,2]
[425201303,1781569840000,-9999.99,8.219e-05,2]
[425201301,1781569840000,-500.0,8.219e-05,2]
[425201305,1781569840000,-150.99,8.493e-05,2]
[425201304,1781569840000,-299.99,8.219e-05,2]
[425201306,1781569840000,-500.0,8.493e-05,2]
[425201307,1781569840000,-2000.0,8.634e-05,2]
[425201308,1781569840000,-374188.68532765,8.637e-05,2]
[425201312,1781569840000,-166.66,8.925e-05,2]
[425201310,1781569840000,-500.0,8.767e-05,2]
[425201343,1781569840000,-500.0,0.00010045,2]
[425201309,1781569840000,-1852.42,8.665e-05,2]
[425201311,1781569840000,-1000.0,8.924e-05,2]
[425201326,1781569840000,-500.0,9.589e-05,2]
[425201329,1781569840000,-2000.0,9.713e-05,2]
[425201317,1781569840000,-36078.78,9.191e-05,2]
[425201331,1781569840000,-500.0,9.863e-05,2]
[425201324,1781569840000,-500.0,9.315e-05,2]
[425201333,1781569840000,-608.22606308,0.0001,2]
[425201322,1781569840000,-893.65,9.226e-05,2]
[425201337,1781569840000,-176.43835515,0.0001,2]
[425201396,1781569840000,-322.60471311,0.00010045,2]
[425201335,1781569840000,-338.83553214,0.0001,2]
[425201313,1781569840000,-500.0,9.041e-05,2]
[425201406,1781569840000,-150.0,0.00010045,2]
[425201357,1781569840000,-500.0,0.00010045,2]
[425201398,1781569840000,-500.0,0.00010045,2]
[425201465,1781569840000,-155.17811375,0.00012063,2]
[425201461,1781569840000,-151.0,0.00012,2]
[425201467,1781569840000,-246.46218276,0.00012063,2]
[425201470,1781569840000,-2000.0,0.00012951,2]
[425201479,1781569840000,-500.0,0.00013698,2]
[425201472,1781569840000,-2347.93359581,0.00013265,2]
[425201477,1781569840000,-203.736153,0.00013488,7]
[425201481,1781569840000,-500.0,0.00013698,2]
[425201474,1781569840000,-6196.23390729,0.00013265,2]
[425201495,1781569840000,-500.0,0.00013698,2]
[425201501,1781569840000,-500.0,0.00013698,2]
[425201463,1781569840000,-1190.84909607,0.00012,2]
[425201497,1781569840000,-500.0,0.00013698,2]
[425201493,1781569840000,-500.0,0.00013698,2]
[425201485,1781569840000,-500.0,0.00013698,2]
[425201491,1781569840000,-500.0,0.00013698,2]
[425201487,1781569840000,-500.0,0.00013698,2]
[425201489,1781569840000,-500.0,0.00013698,2]
[425201490,1781569840000,-500.0,0.00013698,2]
[425201483,1781569840000,-500.0,0.00013698,2]
[425201492,1781569840000,-500.0,0.00013698,2]
[425201488,1781569840000,-500.0,0.00013698,2]
[425201505,1781569840000,-500.0,0.00013698,2]
[425201408,1781569840000,-500.0,0.00010137,2]
[425201499,1781569840000,-500.0,0.00013698,2]
[425201469,1781569840000,-199.5,0.00012303,2]
[425201503,1781569840000,-500.0,0.00013698,2]
[425201456,1781569840000,-151.0,0.00012,2]
[425201402,1781569840000,-500.0,0.00010045,2]
[425201404,1781569840000,-235.52192307,0.00010045,2]
[425201400,1781569840000,-500.0,0.00010045,2]
[425201412,1781569840000,-5798.24,0.00010332,2]
[425201410,1781569840000,-1619.81584945,0.00010264,2]
[425201419,1781569840000,-152.03214138,0.000109,2]
[425201459,1781569840000,-151.0,0.00012,2]
[425201424,1781569840000,-155.17811375,0.00011099,2]
[425201427,1781569840000,-155.17811375,0.00011099,2]
[425201415,1781569840000,-893.43243211,0.00010741,2]
[425201421,1781569840000,-857.5233046,0.00011046,2]
[425201429,1781569840000,-246.46218282,0.00011099,2]
[425201417,1781569840000,-2000.0,0.00010792,2]
[425201442,1781569840000,-169.0,0.00011366,2]
[425201433,1781569840000,-169.0,0.00011366,2]
[425201435,1781569840000,-169.0,0.00011366,2]
[425201444,1781569840000,-169.0,0.00011366,2]
[425201448,1781569840000,-169.0,0.00011366,2]
[425201450,1781569840000,-152.03214132,0.00011465,2]
[425201438,1781569840000,-169.0,0.00011366,2]
[425201440,1781569840000,-168.9,0.00011366,2]
[425201446,1781569840000,-169.0,0.00011366,2]
[425201454,1781569840000,-151.0,0.00012,2]
[425201452,1781569840000,-2000.0,0.00011872,2]
[425201431,1781569840000,-246.46218276,0.00011099,2]
[425201560,1781569841000,-3044.61,0.00015808,2]
[425201571,1781569841000,-246.46218276,0.00016891,2]
[425201561,1781569841000,-154.37370898,0.000159,2]
[425201556,1781569841000,-3044.61,0.00015449,2]
[425201551,1781569841000,-3681.97,0.00014999,2]
[425201549,1781569841000,-1500.0,0.00014864,2]
[425201552,1781569841000,-352.33,0.00015,2]
[425201554,1781569841000,-10543.96,0.00015138,2]
[425201555,1781569841000,-1555.5,0.00015412,2]
[425201557,1781569841000,-163.68,0.00015653,2]
[425201562,1781569841000,-1613.0535,0.0001596,2]
[425201573,1781569841000,-166.66,0.00017097,2]
[425201570,1781569841000,-155.17811375,0.00016891,2]
[425201564,1781569841000,-3415.67,0.00016116,2]
[425201568,1781569841000,-1672.7364795,0.00016508,2]
[425201567,1781569841000,-500.0,0.00016438,2]
[425201566,1781569841000,-530.88803853,0.00016438,2]
[425201565,1781569841000,-891.4,0.00016438,2]
[425201569,1781569841000,-1600.0,0.00016525,2]
[425201572,1781569841000,-1734.62772924,0.00017056,2]
[425201574,1781569841000,-151.72,0.00017127,2]
[425201575,1781569841000,-150.0,0.00017127,2]
[425201553,1781569841000,-3044.61,0.0001509,2]
[425201563,1781569841000,-300.0,0.00016,2]
[425201558,1781569841000,-1022.71,0.000157,2]
[425201541,1781569841000,-322.041471,0.00014469,7]
[425201548,1781569841000,-3044.61,0.0001473,2]
[425201576,1781569841000,-249.0,0.00017303,2]
[425201507,1781569841000,-786.3,0.00013698,2]
[425201511,1781569841000,-786.3,0.00013698,2]
[425201509,1781569841000,-786.3,0.00013698,2]
[425201517,1781569841000,-786.3,0.00013698,2]
[425201526,1781569841000,-786.3,0.00013698,2]
[425201524,1781569841000,-786.3,0.00013698,2]
[425201513,1781569841000,-786.3,0.00013698,2]
[425201521,1781569841000,-786.3,0.00013698,2]
[425201519,1781569841000,-786.3,0.00013698,2]
[425201515,1781569841000,-786.3,0.00013698,2]
[425201532,1781569841000,-250.0,0.00014,2]
[425201545,1781569841000,-186.38,0.00014542,2]
[425201547,1781569841000,-258.18,0.00014697,2]
[425201539,1781569841000,-3044.61,0.00014371,2]
[425201537,1781569841000,-5543.46,0.00014371,2]
[425201535,1781569841000,-8202.18,0.00014294,2]
[425201542,1781569841000,-155.17811375,0.00014477,2]
[425201546,1781569841000,-1600.0,0.00014689,2]
[425201528,1781569841000,-1022.71,0.000137,2]
[425201530,1781569841000,-249.264014,0.00013733,7]
[425201544,1781569841000,-246.46218276,0.00014477,2]
[425201550,1781569841000,-200.0,0.00014875,2]
[425201559,1781569841000,-152.03214132,0.00015728,2]
[425201577,1781569841000,-166.66,0.00017457,2]
[425201578,1781569841000,-1798.80895522,0.00017604,2]
[425201581,1781569841000,-1022.71,0.000179,2]
[425201616,1781569841000,-166.66,0.00018177,2]
[425201611,1781569841000,-500.0,0.00018152,2]
[425201612,1781569841000,-151.0,0.00018152,2]
[425201608,1781569841000,-151.0,0.00018152,2]
[425201618,1781569841000,-891.4,0.0001841,2]
[425201609,1781569841000,-500.0,0.00018152,2]
[425201617,1781569841000,-1600.0,0.00018361,2]
[425201615,1781569841000,-500.0,0.00018152,2]
[425201613,1781569841000,-500.0,0.00018152,2]
[425201619,1781569841000,-166.66,0.00018537,2]
[425201610,1781569841000,-151.0,0.00018152,2]
[425201630,1781569841000,-246.46218276,0.00019304,2]
[425201631,1781569841000,-500.0,0.0001937,2]
[425201622,1781569841000,-200.0,0.000187,2]
[425201624,1781569841000,-166.66,0.00018897,2]
[425201620,1781569841000,-608.22606307,0.00018566,2]
[425201628,1781569841000,-2005.9555727,0.00019248,2]
[425201625,1781569841000,-1057.01,0.000189,7]
[425201621,1781569841000,-151.0,0.000187,2]
[425201623,1781569841000,-1934.38338736,0.000187,2]
[425201626,1781569841000,-151.0,0.00019248,2]
[425201629,1781569841000,-155.17811375,0.00019304,2]
[425201582,1781569841000,-500.0,0.00017997,2]
[425201603,1781569841000,-500.0,0.00018152,2]
[425201605,1781569841000,-500.0,0.00018152,2]
[425201614,1781569841000,-500.0,0.00018152,2]
[425201598,1781569841000,-500.0,0.00018152,2]
[425201600,1781569841000,-500.0,0.00018152,2]
[425201627,1781569841000,-200.0,0.00019248,2]
[425201579,1781569841000,-205.15,0.00017606,2]
[425201580,1781569841000,-166.66,0.00017817,2]
[425201584,1781569841000,-350.0,0.00018,2]
[425201595,1781569841000,-151.0,0.00018152,2]
[425201583,1781569841000,-200.0,0.00017997,2]
[425201586,1781569841000,-200.0,0.00018152,2]
[425201585,1781569841000,-151.0,0.00018152,2]
[425201593,1781569841000,-151.0,0.00018152,2]
[425201590,1781569841000,-151.0,0.00018152,2]
[425201587,1781569841000,-151.0,0.00018152,2]
[425201594,1781569841000,-500.0,0.00018152,2]
[425201601,1781569841000,-500.0,0.00018152,2]
[425201597,1781569841000,-151.0,0.00018152,2]
[425201592,1781569841000,-500.0,0.00018152,2]
[425201602,1781569841000,-151.0,0.00018152,2]
[425201607,1781569841000,-500.0,0.00018152,2]
[425201604,1781569841000,-151.0,0.00018152,2]
[425201599,1781569841000,-151.0,0.00018152,2]
[425201596,1781569841000,-500.0,0.00018152,2]
[425201591,1781569841000,-151.0,0.00018152,2]
[425201588,1781569841000,-1865.36488656,0.00018152,2]
[425201589,1781569841000,-151.0,0.00018152,2]
[425201606,1781569841000,-151.0,0.00018152,2]
[425201675,1781569842000,-784.43422086,0.000208,2]
[425201670,1781569842000,-891.4,0.00020381,2]
[425201668,1781569842000,-200.0,0.00020344,2]
[425201671,1781569842000,-784.43422086,0.000204,2]
[425201669,1781569842000,-2157.14243826,0.00020344,2]
[425201662,1781569842000,-1666.0,0.0002,2]
[425201661,1781569842000,-178.0,0.0002,2]
[425201660,1781569842000,-200.0,0.0002,2]
[425201664,1781569842000,-8202.18,0.00020012,2]
[425201667,1781569842000,-151.0,0.00020344,2]
[425201666,1781569842000,-784.43422086,0.000202,2]
[425201674,1781569842000,-3645.0,0.00020766,2]
[425201688,1781569842000,-500.0,0.00021,2]
[425201673,1781569842000,-6078.0,0.00020766,2]
[425201677,1781569842000,-2236.95670847,0.00020892,2]
[425201676,1781569842000,-200.0,0.00020892,2]
[425201679,1781569842000,-5790.0,0.00021,2]
[425201684,1781569842000,-763.0,0.00021,2]
[425201681,1781569842000,-2277.959821,0.00021,2]
[425201678,1781569842000,-152.0,0.00021,2]
[425201685,1781569842000,-250.0,0.00021,2]
[425201680,1781569842000,-869.3812221,0.00021,2]
[425201682,1781569842000,-184.0,0.00021,2]
[425201686,1781569842000,-190.0,0.00021,2]
[425201663,1781569842000,-232.0,0.0002,2]
[425201672,1781569842000,-784.43422086,0.000206,2]
[425201657,1781569842000,-214.0,0.0002,2]
[425201632,1781569842000,-500.0,0.00019458,2]
[425201656,1781569842000,-19745.6,0.0002,2]
[425201633,1781569842000,-25000.0,0.00019459,3]
[425201698,1781569842000,-869.3812221,0.000214,2]
[425201635,1781569842000,-25000.0,0.00019468,3]
[425201634,1781569842000,-786.3,0.00019467,2]
[425201638,1781569842000,-151.0,0.00019795,2]
[425201640,1781569842000,-200.0,0.00019796,2]
[425201636,1781569842000,-25000.0,0.00019477,3]
[425201639,1781569842000,-151.0,0.00019796,2]
[425201637,1781569842000,-22028.350157,0.00019486,3]
[425201641,1781569842000,-2080.17592889,0.00019796,2]
[425201642,1781569842000,-1022.71,0.000199,2]
[425201645,1781569842000,-400.0,0.0002,2]
[425201659,1781569842000,-1248.0,0.0002,2]
[425201643,1781569842000,-152.03214132,0.0001999,2]
[425201648,1781569842000,-1248.0,0.0002,2]
[425201646,1781569842000,-152.0,0.0002,2]
[425201651,1781569842000,-184.0,0.0002,2]
[425201652,1781569842000,-247.0,0.0002,2]
[425201647,1781569842000,-784.43422086,0.0002,2]
[425201650,1781569842000,-1066.0,0.0002,2]
[425201653,1781569842000,-763.0,0.0002,2]
[425201649,1781569842000,-2277.959821,0.0002,2]
[425201665,1781569842000,-1600.0,0.00020197,2]
[425201655,1781569842000,-190.0,0.0002,2]
[425201658,1781569842000,-205.0,0.0002,2]
[425201654,1781569842000,-250.0,0.0002,2]
[425201644,1781569842000,-400.0,0.00019999,2]
[425201687,1781569842000,-500.0,0.00021,3]
[425201683,1781569842000,-247.0,0.00021,2]
[425201690,1781569842000,-205.0,0.00021,2]
[425201720,1781569842000,-500.0,0.00022,3]
[425201722,1781569842000,-450.0,0.00022,2]
[425201728,1781569842000,-250.0,0.00022,2]
[425201739,1781569842000,-298.5,0.00022303,2]
[425201738,1781569842000,-1600.0,0.00022034,2]
[425201727,1781569842000,-763.0,0.00022,2]
[425201735,1781569842000,-178.0,0.00022,2]
[425201732,1781569842000,-205.0,0.00022,2]
[425201733,1781569842000,-1248.0,0.00022,2]
[425201737,1781569842000,-232.0,0.00022,2]
[425201730,1781569842000,-1684.08,0.00022,2]
[425201729,1781569842000,-190.0,0.00022,2]
[425201718,1781569842000,-2405.55389863,0.00021988,2]
[425201734,1781569842000,-200.0,0.00022,2]
[425201741,1781569842000,-2494.55939288,0.00022536,2]
[425201740,1781569842000,-891.4,0.00022353,2]
[425201745,1781569842000,-763.0,0.00023,2]
[425201748,1781569842000,-214.0,0.00023,2]
[425201747,1781569842000,-190.0,0.00023,2]
[425201744,1781569842000,-247.0,0.00023,2]
[425201750,1781569842000,-1248.0,0.00023,2]
[425201746,1781569842000,-250.0,0.00023,2]
[425201743,1781569842000,-184.0,0.00023,2]
[425201742,1781569842000,-2277.959821,0.00023,2]
[425201749,1781569842000,-205.0,0.00023,2]
[425201689,1781569842000,-214.0,0.00021,2]
[425201736,1781569842000,-1666.0,0.00022,2]
[425201721,1781569842000,-500.0,0.00022,3]
[425201731,1781569842000,-214.0,0.00022,2]
[425201717,1781569842000,-200.0,0.00021988,2]
[425201723,1781569842000,-166.0,0.00022,2]
[425201692,1781569842000,-200.0,0.00021,2]
[425201694,1781569842000,-1666.0,0.00021,2]
[425201696,1781569842000,-869.3812221,0.000212,2]
[425201693,1781569842000,-178.0,0.00021,2]
[425201695,1781569842000,-232.0,0.00021,2]
[425201697,1781569842000,-2000.0,0.0002129,7]
[425201699,1781569842000,-200.0,0.0002144,2]
[425201702,1781569842000,-1275.0,0.00021546,2]
[425201704,1781569842000,-1228.0,0.00021546,2]
[425201711,1781569842000,-155.17811375,0.00021718,2]
[425201705,1781569842000,-10930.89107553,0.00021565,7]
[425201701,1781569842000,-2319.72410669,0.0002144,2]
[425201691,1781569842000,-1248.0,0.00021,2]
[425201719,1781569842000,-500.0,0.00022,3]
[425201716,1781569842000,-5000.0,0.00021918,2]
[425201725,1781569842000,-184.0,0.00022,2]
[425201724,1781569842000,-2277.959821,0.00022,2]
[425201703,1781569842000,-1359.0,0.00021546,2]
[425201726,1781569842000,-247.0,0.00022,2]
[425201715,1781569842000,-500.0,0.00021918,2]
[425201706,1781569842000,-869.3812221,0.000216,2]
[425201707,1781569842000,-19745.6,0.00021653,2]
[425201709,1781569842000,-500.0,0.0002166,2]
[425201713,1781569842000,-869.3812221,0.000219,2]
[425201712,1781569842000,-246.46218276,0.00021718,2]
[425201714,1781569842000,-1022.71,0.000219,2]
[425201788,1781569843000,-786.3,0.00023589,2]
[425201802,1781569843000,-2277.959821,0.00024,2]
[425201799,1781569843000,-3645.0,0.00023766,2]
[425201800,1781569843000,-880.84,0.000239,14]
[425201789,1781569843000,-786.3,0.00023589,2]
[425201783,1781569843000,-151.0,0.00023587,7]
[425201785,1781569843000,-500.0,0.00023589,2]
[425201784,1781569843000,-500.0,0.00023589,2]
[425201782,1781569843000,-16351.95931534,0.00023565,7]
[425201777,1781569843000,-162.25191701,0.00023287,2]
[425201801,1781569843000,-500.0,0.00024,2]
[425201787,1781569843000,-786.3,0.00023589,2]
[425201786,1781569843000,-500.0,0.00023589,2]
[425201791,1781569843000,-613648.216283,0.0002359,2]
[425201813,1781569843000,-150.0,0.00024,2]
[425201795,1781569843000,-221.0,0.00023606,10]
[425201796,1781569843000,-2000.0,0.00023629,7]
[425201793,1781569843000,-23685.5010668,0.0002359,2]
[425201798,1781569843000,-6078.0,0.00023766,2]
[425201803,1781569843000,-184.0,0.00024,2]
[425201809,1781569843000,-205.0,0.00024,2]
[425201808,1781569843000,-214.0,0.00024,2]
[425201807,1781569843000,-190.0,0.00024,2]
[425201811,1781569843000,-200.0,0.00024,2]
[425201804,1781569843000,-247.0,0.00024,2]
[425201812,1781569843000,-178.0,0.00024,2]
[425201805,1781569843000,-763.0,0.00024,2]
[425201797,1781569843000,-2682.57183977,0.00023632,2]
[425201781,1781569843000,-10000.0,0.00023465,2]
[425201751,1781569843000,-200.0,0.00023,2]
[425201780,1781569843000,-19745.6,0.00023305,7]
[425201815,1781569843000,-232.0,0.00024,2]
[425201755,1781569843000,-500.0,0.00023014,2]
[425201758,1781569843000,-150.0,0.00023014,2]
[425201761,1781569843000,-150.0,0.00023014,2]
[425201757,1781569843000,-150.0,0.00023014,2]
[425201753,1781569843000,-1666.0,0.00023,2]
[425201752,1781569843000,-178.0,0.00023,2]
[425201754,1781569843000,-232.0,0.00023,2]
[425201759,1781569843000,-555.55214773,0.00023014,2]
[425201760,1781569843000,-500.0,0.00023014,2]
[425201762,1781569843000,-500.0,0.00023014,2]
[425201756,1781569843000,-500.0,0.00023014,2]
[425201764,1781569843000,-205.12181795,0.00023014,2]
[425201767,1781569843000,-500.0,0.00023014,2]
[425201763,1781569843000,-500.0,0.00023014,2]
[425201768,1781569843000,-500.0,0.00023014,2]
[425201770,1781569843000,-500.0,0.00023014,2]
[425201769,1781569843000,-559.62087987,0.00023014,2]
[425201765,1781569843000,-500.0,0.00023014,2]
[425201771,1781569843000,-500.0,0.00023014,2]
[425201774,1781569843000,-400.93207485,0.00023014,2]
[425201772,1781569843000,-500.0,0.00023014,2]
[425201766,1781569843000,-500.0,0.00023014,2]
[425201773,1781569843000,-500.0,0.00023014,2]
[425201775,1781569843000,-2586.85809042,0.00023084,2]
[425201776,1781569843000,-80461.0,0.000232,2]
[425201778,1781569843000,-160.0,0.00023287,2]
[425201779,1781569843000,-157.67,0.00023288,2]
[425201806,1781569843000,-250.0,0.00024,2]
[425201874,1781569843000,-152.0,0.00026118,4]
[425201810,1781569843000,-1248.0,0.00024,2]
[425201848,1781569843000,-215.0,0.00025,2]
[425201851,1781569843000,-173.84,0.00025,2]
[425201849,1781569843000,-187.0,0.00025,2]
[425201847,1781569843000,-1261.30381491,0.00025,2]
[425201850,1781569843000,-1666.58672116,0.00025,2]
[425201854,1781569843000,-173.84,0.00025,2]
[425201858,1781569843000,-173.84,0.00025,2]
[425201855,1781569843000,-173.84,0.00025,2]
[425201856,1781569843000,-173.84,0.00025,2]
[425201859,1781569843000,-173.84,0.00025,2]
[425201857,1781569843000,-173.84,0.00025,2]
[425201860,1781569843000,-173.84,0.00025,2]
[425201861,1781569843000,-237.3844317,0.00025,2]
[425201864,1781569843000,-152.0,0.00025416,3]
[425201863,1781569843000,-2991.49051684,0.00025276,2]
[425201862,1781569843000,-206.0,0.00025073,2]
[425201866,1781569843000,-207.45,0.00025738,2]
[425201865,1781569843000,-500.0,0.00025666,2]
[425201867,1781569843000,-3537.31,0.00025786,2]
[425201868,1781569843000,-605.45,0.00025786,2]
[425201872,1781569843000,-180.0,0.00026008,2]
[425201876,1781569843000,-500.0,0.00026199,2]
[425201873,1781569843000,-157.67,0.00026027,10]
[425201870,1781569843000,-2000.0,0.00025968,7]
[425201814,1781569843000,-1666.0,0.00024,2]
[425201875,1781569843000,-285.0,0.00026194,7]
[425201869,1781569843000,-849.01,0.00025786,2]
[425201846,1781569843000,-206.0,0.00025,2]
[425201844,1781569843000,-396.9,0.00025,7]
[425201871,1781569843000,-550.0,0.00026,2]
[425201841,1781569843000,-768.05539555,0.00025,2]
[425201817,1781569843000,-155.17811375,0.00024132,2]
[425201853,1781569843000,-173.84,0.00025,2]
[425201816,1781569843000,-5528.0,0.000241,3]
[425201820,1781569843000,-605.45,0.00024174,2]
[425201818,1781569843000,-246.46218276,0.00024132,2]
[425201824,1781569843000,-1022.71,0.000243,7]
[425201825,1781569843000,-891.4,0.00024324,2]
[425201822,1781569843000,-2781.82699784,0.0002418,2]
[425201821,1781569843000,-849.01,0.00024174,2]
[425201823,1781569843000,-152.03214132,0.00024252,2]
[425201826,1781569843000,-150.0,0.00024384,2]
[425201827,1781569843000,-1359.0,0.00024546,2]
[425201835,1781569843000,-5528.0,0.000249,5]
[425201828,1781569843000,-1228.0,0.00024546,2]
[425201819,1781569843000,-3537.31,0.00024174,2]
[425201839,1781569843000,-253.59966885,0.00025,2]
[425201838,1781569843000,-200.0,0.00025,2]
[425201852,1781569843000,-173.84,0.00025,2]
[425201845,1781569843000,-216.53699946,0.00025,2]
[425201842,1781569843000,-268.80448742,0.00025,2]
[425201837,1781569843000,-19745.6,0.00024958,7]
[425201833,1781569843000,-2884.75459676,0.00024728,2]
[425201843,1781569843000,-190.64031093,0.00025,2]
[425201834,1781569843000,-35422.05,0.000248,2]
[425201832,1781569843000,-1684.08,0.00024697,7]
[425201831,1781569843000,-1000.0,0.00024658,2]
[425201830,1781569843000,-662.5,0.00024658,2]
[425201829,1781569843000,-22124.7774,0.00024565,7]
[425201836,1781569843000,-500.0,0.00024918,2]
[425201915,1781569844000,-151.0,0.00027,7]
[425201920,1781569844000,-151.0,0.00027,7]
[425201918,1781569844000,-151.0,0.00027,7]
[425201917,1781569844000,-151.0,0.00027,7]
[425201908,1781569844000,-151.0,0.00027,7]
[425201912,1781569844000,-151.0,0.00027,7]
[425201902,1781569844000,-151.0,0.00027,7]
[425201910,1781569844000,-151.0,0.00027,7]
[425201906,1781569844000,-151.0,0.00027,7]
[425201911,1781569844000,-151.0,0.00027,7]
[425201913,1781569844000,-151.0,0.00027,7]
[425201923,1781569844000,-151.0,0.00027,7]
[425201914,1781569844000,-151.0,0.00027,7]
[425201921,1781569844000,-151.0,0.00027,7]
[425201919,1781569844000,-151.0,0.00027,7]
[425201931,1781569844000,-151.0,0.00027,7]
[425201933,1781569844000,-151.0,0.00027,7]
[425201922,1781569844000,-151.0,0.00027,7]
[425201932,1781569844000,-151.0,0.00027,7]
[425201925,1781569844000,-151.0,0.00027,7]
[425201926,1781569844000,-151.0,0.00027,7]
[425201924,1781569844000,-151.0,0.00027,7]
[425201928,1781569844000,-151.0,0.00027,7]
[425201904,1781569844000,-151.0,0.00027,7]
[425201927,1781569844000,-151.0,0.00027,7]
[425201916,1781569844000,-151.0,0.00027,7]
[425201907,1781569844000,-151.0,0.00027,7]
[425201889,1781569844000,-6078.0,0.00026766,2]
[425201909,1781569844000,-151.0,0.00027,7]
[425201930,1781569844000,-151.0,0.00027,7]
[425201877,1781569844000,-35422.05,0.000262,2]
[425201878,1781569844000,-3681.97,0.0002629,2]
[425201882,1781569844000,-500.0,0.00026436,2]
[425201887,1781569844000,-600.0,0.0002657,2]
[425201884,1781569844000,-1022.71,0.000265,7]
[425201880,1781569844000,-1135.4,0.00026384,7]
[425201879,1781569844000,-891.4,0.00026296,2]
[425201886,1781569844000,-246.46218276,0.00026546,2]
[425201888,1781569844000,-19745.6,0.00026611,7]
[425201885,1781569844000,-155.17811375,0.00026546,2]
[425201881,1781569844000,-1265.5,0.00026384,7]
[425201903,1781569844000,-151.0,0.00027,7]
[425201883,1781569844000,-237.67806015,0.00026483,2]